Cogmind - Beta 13 --- EXPLORER MODE // 2024.03.15 @ 23:08:24 Player: Sub Result: Destroyed by D-53 Grenadier with Mini Grenade Launcher Performance ------------- Evolutions (0) 0 Regions Visited (2) 400 Robots Destroyed (2) 10 Value Destroyed (81) 81 Prototype IDs (0) 0 Alien Tech Used (0) 0 Bonus (0) 0 TOTAL SCORE: 491 Bonus ------- None Cogmind --------- Core Integrity 0/250 Matter 290/300 Energy 84/100 System Corruption 0% Temperature Cool (18) Movement Walking (190) Ox1 Location -10/Mines Parts ------- > --- POWER (1) -------- (None) > --- PROPULSION (2) --- Aluminum Leg > --- UTILITY (3) ------ Small Storage Unit Sensor Array Targeting Computer > --- WEAPON (2) ------- Particle Gun Particle Gun > --- INVENTORY (8) ---- Aluminum Leg Heat Sink Sensor Array Targeting Computer Peak State ------------ > --- POWER ------------ Light Ion Engine > --- PROPULSION ------- Aluminum Leg Aluminum Leg > --- UTILITY ---------- Targeting Computer Core Shielding Light Armor Plating > --- WEAPON ----------- Medium Laser Small Laser > --- INVENTORY -------- Targeting Computer [Rating: 8] Favorites ----------- Power Light Ion Engine Engine Light Ion Engine Propulsion Aluminum Leg Leg Aluminum Leg Utility Targeting Computer Device Sensor Array Storage Small Storage Unit Processor Targeting Computer Protection Core Shielding Weapon Medium Laser Energy Gun Medium Laser Build | -11 -10 -10 ------- Run | Yrd Mat Min Slots Evolved 1 | . 1 . Power . | . . . Propulsion . | . . . Utility 1 | . 1 . Weapon . | . . . Parts Attached 14 | 5 4 5 Power 1 | 1 . . Engine 1 | 1 . . Core . | . . . Reactor . | . . . Propulsion 4 | 2 1 1 Treads . | . . . Leg 4 | 2 1 1 Wheel . | . . . Hover . | . . . Flight . | . . . Utility 5 | . 3 2 Device 1 | . . 1 Storage 1 | . . 1 Processor 1 | . 1 . Hackware . | . . . Protection 2 | . 2 . Artifact . | . . . Weapon 4 | 2 . 2 Energy Gun 4 | 2 . 2 Energy Cannon . | . . . Ballistic Gun . | . . . Ballistic Cannon . | . . . Launcher . | . . . Special Weapon . | . . . Impact Weapon . | . . . Slashing Weapon . | . . . Piercing Weapon . | . . . Special Melee Weapon . | . . . Unidentified Prototypes . | . . . Parts Lost 6 | . . 6 Power 1 | . . 1 Propulsion 2 | . . 2 Utility 2 | . . 2 Weapon 1 | . . 1 Highest Loss Streak 6 | . . 6 To Critical Strikes . | . . . Average Slot Usage (%) 80 | . 94 63 Engine 7 | . 12 2 Leg 19 | . 22 15 Device 2 | . . 5 Processor 12 | . 12 12 Protection 17 | . 25 8 Energy Gun 20 | . 21 18 Naked Turns . | . . . Heaviest Build 12 | 6 10 12 Greatest Support 20 | 20 20 20 Greatest Overweight (x) 1 | . . 1 Average Overweight (x) . | . . . Largest Inventory Capacity 8 | 5 5 8 Average Capacity 5 | 5 5 5 Most Carried 5 | 4 5 5 Average Carried 3 | 2 3 4 Final Capacity 8 | 5 5 8 Final Carried 4 | 4 4 4 Class Distribution -------------------- 100% | Hacker-Mutant Dominant Class ---------------- Hacker-Mutant | -10/Materials Hacker-Mutant | -10/Mines Resources | -11 -10 -10 ----------- Run | Yrd Mat Min Matter Collected 320 | 250 30 40 Remotely . | . . . Salvage Created 168 | 50 46 72 Parts 1 | . 1 . Haulers Intercepted . | . . . Recyclers Shooed . | . . . Parts Field Recycled . | . . . Retrieved Matter . | . . . Parts Self-Destructed . | . . . Prevented . | . . . Kills | -11 -10 -10 ------- Run | Yrd Mat Min Combat Hostiles Destroyed 8 | 1 1 6 Guns 8 | 1 1 6 Classes Destroyed 2 | 1 . 1 Grunt 2 | 1 1 . Assembled 6 | . . 6 Best Kill Streak 5 | 1 1 5 Combat Bots Only 5 | 1 1 5 Max Kills in Single Turn 2 | 1 1 2 Gunslinging 1 | . . 1 Exploded . | . . . Melee . | . . . Uniques/NPCs Destroyed . | . . . Combat | -11 -10 -10 -------- Run | Yrd Mat Min Hostile Shots Fired 128 | 6 29 93 Missed 37 | 1 9 27 Damage Taken 858 | 33 143 682 Core 251 | . 21 230 Absorbed by Shields . | . . . Redirected to Shielding 29 | . 4 25 Ignored by Resistances 534 | 23 93 418 Core Remaining (%) 100 | 100 . . Volleys Fired 37 | 4 12 21 Largest 2 | 2 2 2 Hottest 130 | 90 90 130 Shots Fired 61 | 8 22 31 Gun 61 | 8 22 31 Cannon . | . . . Launcher . | . . . Special . | . . . Kinetic . | . . . Thermal 61 | 8 22 31 Explosive . | . . . Electromagnetic . | . . . Robot Hit Streak 16 | 7 14 16 Robot Miss Streak 2 | . 1 2 Penetration Max . | . . . Secondary Targets 1 | . . 1 Max Gunslinging Chain 1 | . . 1 Shots Hit Robots 47 | 7 20 20 Core Hits 15 | 2 4 9 Critical Kills . | . . . Critical Parts Destroyed . | . . . Critical Strikes 5 | . 3 2 Burn 5 | . 3 2 Melee Attacks . | . . . Impact . | . . . Slashing . | . . . Piercing . | . . . Sneak Attacks . | . . . Combat Hostiles . | . . . Follow-up Attacks . | . . . Damage Inflicted 617 | 82 233 302 Guns 617 | 82 233 302 Cannons . | . . . Explosions . | . . . Melee . | . . . Ramming . | . . . Kinetic . | . . . Thermal 617 | 82 233 302 Explosive . | . . . Electromagnetic . | . . . Impact . | . . . Slashing . | . . . Piercing . | . . . Highest Corruption . | . . . Average Corruption . | . . . Corruption Purged . | . . . Corruption Blocked . | . . . Overload Shots . | . . . Overflow Damage . | . . . Projectiles . | . . . Explosions . | . . . Melee . | . . . Knockbacks . | . . . Impact . | . . . Kinetic . | . . . Secondary . | . . . Self-Inflicted Damage . | . . . Shots . | . . . Rammed . | . . . Targets Rammed . | . . . Kicked . | . . . Crushed . | . . . Highest Temperature 484 | 144 484 246 Average Temperature 152 | 76 253 92 Received Heat Transfer 232 | 30 102 100 Effects 3 | . 3 . Shutdowns 2 | . 2 . Damage (minor) 1 | . 1 . Siege Activations . | . . . Robots Corrupted . | . . . Combat Hostiles . | . . . Parts Fried . | . . . Impact Corruptions . | . . . Robots Melted . | . . . Combat Hostiles . | . . . Parts Melted . | . . . Heat Transferred 1965 | 223 854 888 Parts Sabotaged . | . . . Parts Stolen . | . . . Parts Stripped . | . . . Power Chain Reactions . | . . . Alert | -11 -10 -10 ------- Run | Yrd Mat Min Peak Influence 59 | 20 59 16 Initial 16 | . 9 16 Average 16 | 11 32 4 Maximum Alert Level . | . . . Low Security (%) 100 | 100 100 100 Level 1 . | . . . Level 2 . | . . . Level 3 . | . . . Level 4 . | . . . Level 5 . | . . . High Security . | . . . Max Security . | . . . Squads Dispatched . | . . . Investigation . | . . . Extermination . | . . . Reinforcement . | . . . Assault . | . . . Garrison . | . . . Intercept . | . . . Searches Triggered . | . . . Construction Impeded . | . . . Haulers Reinforced . | . . . Active Scanning Responses . | . . . Cargo Convoy Interrupts . | . . . Stealth | -11 -10 -10 --------- Run | Yrd Mat Min Distress Signals . | . . . Communications Jammed . | . . . Distress Signals . | . . . Times Spotted 23 | 1 4 18 Peak Tracking Total 16 | 1 4 16 Tactical Retreats 1 | . 1 . Traps | -11 -10 -10 ------- Run | Yrd Mat Min Traps Triggered 1 | . 1 . Indirectly . | . . . Trap Hack Attempts . | . . . Triggered . | . . . Disarmed . | . . . Reprogrammed . | . . . Reused . | . . . Traps Extracted . | . . . Installed . | . . . Triggered . | . . . Machines | -11 -10 -10 ---------- Run | Yrd Mat Min Machines Disabled . | . . . Max in Single Turn . | . . . Machines Repaired . | . . . Machines Dismantled . | . . . Machines Sabotaged . | . . . Overloaded Fab Kills . | . . . Hacking | -11 -10 -10 --------- Run | Yrd Mat Min Machines Accessed 1 | . 1 . Terminals 1 | . 1 . Fabricators . | . . . Repair Stations . | . . . Recycling Units . | . . . Scanalyzers . | . . . Garrison Access . | . . . Total Hacks 2 | . 2 . Successful 2 | . 2 . Failed . | . . . Catastrophic . | . . . Database Lockouts . | . . . Manual . | . . . Terminals 2 | . 2 . Fabricators . | . . . Repair Stations . | . . . Recycling Units . | . . . Scanalyzers . | . . . Garrison Access . | . . . Terminal Hacks 2 | . 2 . Robot Analysis 1 | . 1 . Branch Access Points 1 | . 1 . Fabricator Hacks . | . . . Repair Station Hacks . | . . . Recycling Unit Hacks . | . . . Scanalyzer . | . . . Garrison Access Hacks . | . . . Unauthorized Hacks . | . . . Terminals . | . . . Fabricators . | . . . Repair Stations . | . . . Recycling Units . | . . . Scanalyzers . | . . . Garrison Access . | . . . Data Cores Recovered . | . . . Used . | . . . Hacking Detections 1 | . 1 . Full Trace Events . | . . . Feedback Events . | . . . Feedback Blocked . | . . . Robot Schematics Acquired . | . . . Robots Built . | . . . Authchips . | . . . Time . | . . . Total Robot Build Rating . | . . . Part Schematics Acquired . | . . . Parts Built . | . . . Authchips . | . . . Time . | . . . Total Part Build Rating . | . . . Parts Repaired . | . . . Time . | . . . Parts Recycled . | . . . Recycled Matter . | . . . Retrieved Matter . | . . . Retrieved Components . | . . . Parts Scanalyzed . | . . . Part Schematics Acquired . | . . . Parts Damaged . | . . . Bothacking | -11 -10 -10 ------------ Run | Yrd Mat Min Used RIF Installer . | . . . Robots Hacked . | . . . Non-combat . | . . . Combat . | . . . Robot Hacks Applied . | . . . Relay Couplers Released . | . . . Fabnet Peak Effective % . | . . . Robots Rewired . | . . . Allies Hacked . | . . . Hacks Repelled . | . . . Allies | -11 -10 -10 -------- Run | Yrd Mat Min Total Allies 3 | . . 3 Largest Group 3 | . . 3 Highest-Rated Group 40 | . . 40 Highest-Rated Ally 16 | . . 16 Total Orders . | . . . Ally Attacks 6 | . . 6 Total Damage 46 | . . 46 Kills . | . . . Allies Corrupted . | . . . Allies Melted . | . . . Intel | -11 -10 -10 ------- Run | Yrd Mat Min Robot Analysis Total 1 | . 1 . Derelict Logs Recovered . | . . . Drone Launches . | . . . Drone Recoveries . | . . . Exploration | -11 -10 -10 ------------- Run | Yrd Mat Min Turns Passed 546 | 203 192 151 Spaces Moved 358 | 160 126 72 Core 23 | 20 . 3 Treads . | . . . Legs 335 | 140 126 69 Wheels . | . . . Hover . | . . . Flight . | . . . Fastest Speed 50 | 50 120 100 Average Speed 116 | 111 120 123 Slowest Speed 190 | 120 120 190 Overloaded Moves . | . . . Propulsion Burnouts . | . . . Robots Hopped . | . . . Cave-ins Triggered . | . . . Exploration Rate (%) 15 | 8 20 17 Regions Visited 2 Branch Regions 1 Pre-discovered Areas . | . . . Known Exits Taken 2 | 1 1 . Unknown Exits Taken . | . . . Scrap Searched . | . . . Spaces Dug . | . . . Terrain Destroyed . | . . . Melee . | . . . Projectile . | . . . AOE . | . . . Terrain Rammed . | . . . Walls Destroyed . | . . . Machines Disabled . | . . . Actions | -11 -10 -10 --------- Run | Yrd Mat Min Total 427 | 177 145 105 Wait . | . . . Move 356 | 159 125 72 Hop . | . . . Pick Up 19 | 9 4 6 Fast Attach . | . . . Attach 14 | 5 4 5 Detach . | . . . Swap . | . . . Drop 1 | . . 1 Fire 37 | 4 12 21 Melee . | . . . Ram . | . . . Kick . | . . . Crush . | . . . Escape Stasis . | . . . Rewire . | . . . Trap . | . . . Miscellaneous . | . . . Route ------- -11/Scrapyard -10/Materials (discovered 2 exits: *Min x2) -10/Mines History --------- Turn | Location | Event 2 | -11/Scrapyard | Met Revision 17 75 | -11/Scrapyard | Identified exit to Materials 75 | -11/Scrapyard | Discovered exit to Materials (range 8) 204 | -11/Scrapyard | Entered Materials 204 | -10/Materials | Evolved 1 slot: Utility x1 207 | -10/Materials | Identified exit to Mines 207 | -10/Materials | Discovered exit to Mines (range 8) 303 | -10/Materials | Build established: Hacker-Mutant 396 | -10/Materials | Entered Mines 397 | -10/Mines | Assembled infested the area 402 | -10/Mines | Assisted by a Guerilla fighting off Assembled 413 | -10/Mines | Met a Derelict bent on vengeance 439 | -10/Mines | Assisted by bots powering up and referring to "LRC-V3" 448 | -10/Mines | Core integrity fell below 50% 463 | -10/Mines | Core integrity fell below 20% 475 | -10/Mines | Lost 4 allies 485 | -10/Mines | Lost 6 parts (1p2n2u1w) 547 | -10/Mines | Destroyed by D-53 Grenadier with Mini Grenade Launcher Last Messages --------------- as-76923 destroyed. as-29206 destroyed. Switching to secondary target: as-24411. as-24411 destroyed. Acquired Aluminum Leg. Acquired Heat Sink. Acquired Aluminum Leg. Acquired 20 matter. as-78312 destroyed. K-01 Serf collects debris. HW-8UH(g): "UNAWARE KILLED MY BEST FRIEND! VENGEANCE!" K-01 Serf collects debris. Dropped Flight Unit. Acquired Sml. Storage Unit. U-05 Engineer builds a Wall. R-06 Scavenger collects Tractor Beam. K-01 Serf destroyed. R-06 Scavenger collects Com. Wheel. K-01 Serf collects debris. R-06 Scavenger collects Wheel. Map ----- +----------------------------------------------------+ | ?????????????????????????????????????????????? | | ?????????????????????????????????????????????? | | ?????????????????????????????????????????????? | | ?????????????????????????????????????????????? | | ?????????????????????????????????????????????? | | ?????????#####???????????????????????????????? | | ?????????#% #???????????????????????????????? | | ?????????# ==#???????????????????????????????? | | ?????????#% %#???????????????????????????????? | | ???????###* *#######?????????????????????????? | | ???????# % #?????????????????????????? | | ???????# #?????####????????????????? | | ???????# %% #????? ?????????????????? | | ???????# % #????? ?????????????????? | | ???????# % #????? #?????????????????? | | ???????# #????? #?????????????????? | | ???????# #????? #?????????????????? | | ???????# #???## ###???????????????? | | ???????##### ########### ##??????????????? | | ???????????# #????## g ##?????????????? | | ???????????# ###### ##????????????? | | ???????????# %%* < ###??????????? | | ???????????# %% #??????????? | | ???????????####"%## # #?????????? | | ??????????????##?### #????????????????? | | ???????????????# #?# @ #????????????????? | | ??????????????# #?## #???????????????? | | ?????????????# ## #???????????????? | | ??????????????## ## #???????????????? | | ????????? ? d r ##???????????????? | | ????????? = #???????????????? | | ????????? % ## #???????????????? | | ?????????? #?## ##???????????????? | | ???????????# ???###### ##????????????????? | | ??????????? #k ????????? #?????????????????? | | ???????????? #? ?????????? #?????????????????? | | ??????????????? ????????? #?????????????????? | | ?????????????????????????? #?????????????????? | | ?????????????????????????? #?????????????????? | | ?????????????????????????? ??????????????????? | | ?????????????????????????? ??????????????????? | | ?????????????????????????????????????????????? | | ?????????????????????????????????????????????? | | ?????????????????????????????????????????????? | | ?????????????????????????????????????????????? | | ?????????????????????????????????????????????? | | ?????????????????????????????????????????????? | | ?????????????????????????????????????????????? | | ?????????????????????????????????????????????? | | ?????????????????????????????????????????????? | +----------------------------------------------------+ Best States ------------- Heat Dissipation 25 Energy Generation 10 Energy Capacity 125 Matter Stores 300 Matter Capacity 300 Sight Range 16 Robot Scan Range 14 Terrain Scan Density 10 Armor Coverage 150 Resistance: KI 35 Resistance: TH 35 Resistance: EX 35 Resistance: EM 35 Resistance: I 35 Resistance: S 35 Resistance: P 35 Core Shielding 20 Evasion (%) 55 Targeting Accuracy 5 Offensive Hacking 20 Item Schematics ----------------- None Robot Schematics ------------------ None Fabricated ------------ Nothing Alien Tech Used ----------------- None Achievements -------------- None Challenges ------------ None Game ------ Seed SignalAluminumAutocannon Manual? 0 Play Time 00:09:56 Cumulative 2.0 hours Start 2024.03.15 @ 23:01:28 End 2024.03.15 @ 23:08:24 Sessions 1 Manual Loads 0 Difficulty Explorer Special Mode None Game No. 2 Rogue 0 Adventurer 0 Explorer 2 Win Type - Total 0 Types 0/0/0/0/0/0/0/0/0 Lore% 1 Gallery% 6 Achievement% 7 Wizard Run 0 Options --------- Layout 1 ASCII 0 Keyboard 0 Movement Mouse Keybinds 0 Fullscreen 1 Font 32/Terminus Map View 77x35 Zoom Use 0% Tactical HUD 0 Map Filters NONE Filters NONE Steam 1 RUN: e3d403ba-b8c5-42a8-bb75-a4a39bdac765